bitfinex/quotes_ETHUSD_20250519
["timestamp","ask_amount","ask_price","bid_price","bid_amount"]
[1747641132008,4.15707955,2405.6,2405.1,12.92379141]
[1747641132231,4.15716041,2405.5,2405.1,8.766]
[1747641132530,4.62938945,2405.9,2405.2,8.765]
[1747641132735,4.15707637,2405.6,2405.2,8.765]
[1747641132933,4.15692057,2405.7,2405.2,12.92258301]
[1747641133125,4.15704153,2405.6,2405.2,8.765]
[1747641133324,4.15704153,2405.6,2405.2,12.92265835]
[1747641134137,4.15707253,2405.6,2405.2,8.765]
[1747641134713,7.93946198,2405.6,2405.2,8.765]
[1747641135452,3.78238945,2405.3,2404.8,4.15820496]
[1747641135618,3.65054654,2405.2,2404.9,18.0089405]
[1747641136943,4.15672265,2405.8,2405.0,0.7612]
[1747641137150,7.80735415,2405.7,2405.2,4.15755807]
[1747641137805,4.15697718,2405.6,2405.2,4.15755807]
[1747641138040,4.15701064,2405.6,2405.2,0.49187581]
[1747641138421,3.65054654,2405.7,2405.0,0.7612]
[1747641138422,0.05,2405.9,2405.3,8.763]
[1747641138628,3.65054654,2405.6,2405.3,8.763]
[1747641138821,4.15721241,2405.5,2405.4,8.763]
[1747641139011,7.80775895,2405.5,2405.4,8.763]
[1747641139343,8.61855895,2405.5,2405.4,8.763]
[1747641139539,8.61855895,2405.5,2405.0,4.15792417]
[1747641139837,3.65054654,2405.6,2405.2,8.763]
[1747641140048,3.65054654,2405.3,2405.0,5.11574413]
[1747641140526,3.65054654,2405.3,2405.1,12.92079743]
[1747641140840,3.65054654,2405.3,2405.1,8.763]
[1747641141844,3.65054654,2405.3,2405.0,5.11572414]
[1747641142044,3.65054654,2405.3,2405.1,8.763]
[1747641143744,3.65054654,2405.3,2405.1,10.03210907]
[1747641144048,7.80806472,2405.3,2405.1,10.03210907]
[1747641144251,3.65054654,2405.3,2405.1,8.763]
[1747641146057,3.65054654,2405.3,2405.0,5.1157376]
[1747641146228,4.15773821,2405.2,2405.0,8.746]
[1747641146429,4.1577324,2405.2,2405.0,8.746]
[1747641146739,3.65054654,2405.4,2405.1,4.15773451]
[1747641146945,3.65054654,2405.4,2405.0,14.53372354]
[1747641147148,7.80786198,2405.4,2405.0,14.53372354]
[1747641147349,7.80786198,2405.4,2405.0,10.3758]
[1747641147532,7.8079505,2405.4,2405.0,14.53378293]
[1747641147737,3.65054654,2405.4,2405.0,18.69164858]
[1747641147975,3.65054654,2405.4,2405.0,14.53366565]
[1747641148435,7.80788233,2405.4,2405.0,14.53366565]
[1747641148635,3.65054654,2405.4,2405.1,4.15781994]
[1747641148859,3.65054654,2405.4,2405.0,14.53369831]
[1747641149560,7.80792002,2405.4,2405.0,8.746]
[1747641149861,4.98065317,2405.7,2404.8,8.743]
[1747641149862,3.65054654,2405.1,2404.8,8.743]
[1747641150025,3.65054654,2405.1,2404.9,8.747]
[1747641150423,3.65054654,2405.4,2405.0,4.15800415]
[1747641150649,3.65054654,2405.4,2405.1,4.15770565]
[1747641150829,3.65054654,2405.4,2405.1,4.15776346]
[1747641151554,4.15753671,2405.3,2404.9,12.90508177]
[1747641152573,7.80795591,2405.4,2405.0,4.15789443]
[1747641152738,4.15755955,2405.3,2404.9,12.90508148]
[1747641152938,7.8079093,2405.4,2405.0,4.15798258]
[1747641153571,4.15750114,2405.3,2404.9,12.9050899]
[1747641153758,4.15771177,2405.2,2404.9,8.747]
[1747641153962,4.15757045,2405.3,2404.9,8.747]
[1747641154565,4.15757045,2405.3,2404.9,12.90516186]
[1747641154769,3.65054654,2405.1,2404.9,8.747]
[1747641155174,3.65054654,2405.1,2404.9,12.90509502]
[1747641155373,0.8002,2405.2,2405.1,4.15783127]
[1747641155673,3.65054654,2405.4,2405.2,4.15764146]
[1747641156172,3.65054654,2405.4,2405.1,4.15772514]
[1747641156375,4.15775069,2405.2,2405.0,8.747]
[1747641156671,4.44624654,2405.1,2405.0,8.747]
[1747641157576,4.44624654,2405.1,2404.5,0.28904466]
[1747641157877,3.65054654,2404.8,2404.5,9.03604466]
[1747641158042,3.65054654,2404.8,2404.6,4.15869583]
[1747641158370,3.65054654,2404.8,2404.7,4.15852289]
[1747641158539,3.65054654,2404.8,2404.6,5.8938955]
[1747641158745,3.65054654,2404.8,2404.7,4.15852289]
[1747641159886,3.65054654,2404.8,2404.5,9.03604466]
[1747641160262,7.80897289,2404.8,2404.5,9.03604466]
[1747641160651,3.65054654,2404.8,2404.5,13.19488134]
[1747641161053,3.65054654,2404.8,2404.5,12.90583668]
[1747641162282,4.15857827,2404.7,2404.3,22.11913428]
[1747641162587,3.65054654,2404.8,2404.5,4.15882629]
[1747641163189,3.65054654,2404.8,2404.4,12.90593572]
[1747641163982,3.65054654,2404.8,2404.5,4.15884374]
[1747641164690,3.65054654,2404.8,2404.6,4.15868136]
[1747641165582,3.65054654,2405.0,2404.7,4.15852289]
[1747641165787,4.95357337,2405.1,2404.7,4.15852289]
[1747641166283,0.7957,2405.1,2404.8,4.15827187]
[1747641167685,3.65054654,2405.2,2404.9,4.15817541]
[1747641167890,3.65054654,2405.2,2404.8,4.98990945]
[1747641168186,4.98408108,2405.6,2405.2,4.15757062]
[1747641168352,3.65054654,2405.5,2405.1,4.15775248]
[1747641168991,7.80770358,2405.5,2405.1,4.15775248]
[1747641169394,3.65054654,2405.5,2405.1,4.15775248]
[1747641169690,3.65054654,2405.5,2405.3,4.15746712]
[1747641170098,3.65054654,2405.5,2405.2,4.15757766]
[1747641170259,3.65054654,2405.5,2405.1,6.65230822]
[1747641170869,3.65054654,2405.5,2405.1,6.65226833]
[1747641171196,3.65054654,2405.5,2405.3,4.15747032]
[1747641171352,3.65054654,2405.5,2405.2,5.17002184]
[1747641172190,4.15699232,2405.6,2405.2,5.17002184]
[1747641172361,3.65054654,2405.7,2405.2,4.15759571]
[1747641172560,4.15697653,2405.6,2405.2,4.15759571]
[1747641172801,4.1569952,2405.6,2405.2,4.15757662]
[1747641173024,4.15719939,2405.5,2405.1,4.94596536]
[1747641173162,7.80774593,2405.5,2405.1,4.94596536]
[1747641173370,3.65054654,2405.2,2404.9,13.68360483]
[1747641173700,3.65054654,2405.2,2404.9,4.15810483]
[1747641173898,3.65054654,2405.2,2405.0,8.747]
[1747641174106,3.65054654,2405.2,2405.0,12.90500092]
[1747641174396,4.91724019,2405.4,2405.0,8.747]
[1747641174693,4.15751149,2405.3,2405.0,8.747]
[1747641175182,4.91721621,2405.4,2404.9,4.1580814]
[1747641175479,4.91721621,2405.4,2405.1,8.724]
[1747641176098,0.7598,2405.4,2405.1,12.8817801]
[1747641176397,7.80776508,2405.5,2405.1,12.8817801]
[1747641176579,3.65054654,2405.5,2405.1,8.724]
[1747641176783,7.80770274,2405.5,2405.1,12.88171413]
[1747641176983,7.80770274,2405.5,2405.2,1.70396342]
[1747641177559,7.80770274,2405.5,2405.1,12.88171413]
[1747641177761,3.65054654,2405.5,2405.1,8.724]
[1747641177961,3.65054654,2405.2,2405.0,8.724]
[1747641178167,7.80831787,2405.2,2405.0,8.724]
[1747641178495,3.65054654,2405.2,2405.0,12.88193349]
[1747641178797,3.65054654,2405.2,2405.1,4.15783127]
[1747641178994,3.65054654,2405.2,2405.0,14.1701282]
[1747641179197,3.65054654,2405.2,2405.0,10.01219335]
[1747641179703,3.65054654,2405.2,2405.0,14.17003237]
[1747641179898,3.65054654,2405.2,2405.0,10.01219335]
[1747641180204,3.65054654,2405.4,2405.1,1.41702669]
[1747641180400,7.80787194,2405.4,2405.1,1.41702669]
[1747641180702,7.80793012,2405.4,2405.0,12.8819877]
[1747641181112,3.65054654,2405.4,2405.1,4.15780502]
[1747641181315,3.65054654,2405.4,2405.1,4.15773125]
[1747641182018,7.80786623,2405.4,2405.0,12.88195898]
[1747641184016,3.65054654,2405.4,2405.0,8.724]
[1747641184387,7.80794032,2405.4,2405.0,12.88197206]
[1747641184588,7.80792616,2405.4,2405.0,4.15793392]
[1747641184905,7.80792616,2405.4,2405.0,4.1580029]
[1747641185071,3.65054654,2405.4,2404.9,8.724]
[1747641185408,4.15774392,2405.2,2404.9,8.724]
[1747641185632,3.65054654,2405.1,2404.5,0.7959]
[1747641185809,7.80905337,2404.8,2404.4,9.01304466]
[1747641185991,3.65054654,2404.8,2404.5,4.28866671]
[1747641186193,7.8089024,2404.8,2404.5,0.12989619]
[1747641186538,4.15869583,2404.6,2404.5,0.12989619]
[1747641186822,4.15869583,2404.6,2403.8,0.8059]
[1747641186823,4.15956075,2404.1,2404.0,0.28904466]
[1747641187030,8.60850729,2404.1,2404.0,0.28904466]
[1747641187537,4.44894654,2404.1,2404.0,0.28904466]
[1747641187878,4.44654654,2404.5,2404.0,4.44875806]
[1747641188099,4.44654654,2404.5,2404.1,4.68723529]
[1747641188514,4.44654654,2404.5,2404.1,4.15946948]
[1747641188719,4.44654654,2404.5,2404.0,9.01304466]
[1747641188720,8.60552105,2404.5,2404.0,13.1727416]
[1747641188928,8.60552105,2404.5,2404.1,4.15954954]
[1747641189129,3.65054654,2404.5,2404.2,4.15927335]
[1747641189294,7.80943101,2404.5,2404.1,4.15951533]
[1747641189501,3.65054654,2404.5,2404.1,4.15951533]
[1747641189701,7.80954243,2404.5,2404.0,12.88367924]
[1747641189914,7.80954243,2404.5,2404.0,4.15967924]
[1747641190099,7.80954243,2404.5,2404.1,12.88452757]
[1747641190295,3.65054654,2404.5,2404.2,4.15934028]
[1747641190998,0.7617,2404.7,2404.4,4.15904114]
[1747641191384,4.92024434,2404.7,2404.2,4.15938773]
[1747641192687,4.92024434,2404.7,2404.3,4.15921213]
[1747641193017,4.92024434,2404.7,2404.2,4.15930569]
[1747641193722,3.65054654,2404.5,2404.2,4.15930569]
[1747641195021,3.65054654,2404.5,2404.3,4.15921014]
[1747641195201,3.65054654,2404.5,2404.2,4.15929542]
[1747641195396,4.41224654,2404.7,2404.4,4.15902181]
[1747641195618,4.15881637,2404.6,2404.1,12.88449636]
[1747641195911,3.65054654,2404.4,2404.1,12.88449636]
[1747641196219,3.65054654,2404.4,2404.2,4.15938299]
[1747641196789,3.65054654,2404.4,2404.1,12.88447714]
[1747641197126,3.65054654,2404.4,2404.2,4.1593479]
[1747641197421,3.65054654,2404.4,2404.1,12.88445369]
[1747641197826,3.65054654,2404.4,2404.2,4.15937316]
[1747641198798,3.65054654,2404.4,2404.1,12.88445462]
[1747641199003,3.65054654,2404.4,2404.2,4.15937053]
[1747641200589,3.65054654,2404.4,2404.2,12.88537053]
[1747641201627,3.65054654,2404.4,2404.2,8.726]
[1747641201825,7.8097013,2404.4,2403.9,4.9886845]
[1747641202123,3.65054654,2404.4,2404.2,8.726]
[1747641202315,7.80966087,2404.4,2404.2,8.726]
[1747641202514,7.80966087,2404.4,2404.0,4.15973374]
[1747641202515,4.91549261,2404.3,2404.0,8.726]
[1747641202826,0.7562,2404.3,2404.0,8.726]
[1747641203429,0.777,2404.6,2404.4,4.15896382]
[1747641203628,0.8013,2404.8,2404.5,4.57460117]
[1747641203927,0.8013,2404.8,2404.6,4.15869164]
[1747641204110,0.8013,2404.8,2404.5,4.15872502]
[1747641204526,0.8013,2404.8,2404.2,4.15938773]
[1747641204705,0.8013,2404.8,2404.5,4.15870291]
[1747641204901,0.8013,2404.8,2404.6,4.15854911]
[1747641205102,0.8013,2404.8,2404.6,4.15865477]
[1747641205298,0.7876,2405.3,2404.9,4.15809753]
[1747641205537,4.15778995,2405.2,2404.8,4.15828232]
[1747641205726,8.59572727,2405.3,2404.9,4.15810084]
[1747641206109,4.43814654,2405.3,2404.9,4.15810084]
[1747641206509,4.15779794,2405.2,2404.8,12.85934652]
[1747641207745,4.15779794,2405.2,2404.8,8.701]
[1747641208249,8.59564789,2405.3,2404.8,8.701]
[1747641208410,4.15779771,2405.2,2404.8,12.85932001]
[1747641208606,4.1576584,2405.2,2404.8,8.701]
[1747641208812,4.15777389,2405.2,2404.8,12.8593465]
[1747641209006,4.43814654,2405.3,2404.8,14.74640412]
[1747641209220,8.59573775,2405.3,2404.8,14.74640412]
[1747641209721,4.15767868,2405.2,2404.8,10.58805762]
[1747641209919,4.15820691,2404.9,2404.6,0.7844]
[1747641210122,7.80863553,2405.0,2404.7,8.701]
[1747641210330,7.80863553,2405.0,2404.5,12.85484935]
[1747641210331,0.7668,2404.8,2404.5,8.7]
[1747641210661,7.80909547,2404.7,2404.3,18.7256]
[1747641210833,7.80909547,2404.7,2404.4,8.7]
[1747641211019,3.65054654,2404.7,2404.4,8.7]
[1747641211648,3.65054654,2404.7,2404.4,12.85897202]
[1747641212148,3.65054654,2404.7,2404.4,8.7]
[1747641213128,3.65054654,2404.7,2404.4,12.85901949]
[1747641214139,3.65054654,2404.7,2404.4,8.7]
[1747641214819,3.65054654,2404.7,2404.4,12.85904169]
[1747641215011,0.7668,2404.8,2404.5,4.15883707]
[1747641215217,4.42984654,2405.0,2404.6,4.15868743]
[1747641215620,3.65054654,2405.0,2404.6,4.15868743]
[1747641216019,18.01533778,2405.4,2404.8,4.1582169]
[1747641216351,18.01533778,2405.4,2404.9,12.85814582]
[1747641216352,18.01526671,2405.4,2404.9,12.85814582]
[1747641217247,4.15753659,2405.3,2404.9,8.7]
[1747641217455,3.65054654,2405.1,2404.7,8.7]
[1747641217654,3.65054654,2405.1,2404.5,4.15882421]
[1747641217655,4.15801388,2405.0,2404.5,4.94448774]
[1747641217954,4.15894619,2404.5,2404.3,26.658]
[1747641218252,4.15938931,2404.2,2404.0,0.28904466]
[1747641218463,3.65054654,2404.2,2404.0,0.28904466]
[1747641218625,7.81001658,2404.2,2404.0,0.28904466]
[1747641218955,3.65054654,2404.2,2404.0,0.28904466]
[1747641219334,3.65054654,2404.2,2403.8,4.16005273]
[1747641219651,7.81004389,2404.2,2403.7,12.86025289]
[1747641220339,9.08502028,2404.2,2403.7,12.86025289]
[1747641221256,3.65054654,2404.2,2403.8,4.16006146]
[1747641221624,7.80996756,2404.2,2403.7,12.86018128]
[1747641222131,3.65054654,2404.2,2403.8,4.16007973]
[1747641223053,3.65054654,2404.2,2403.8,4.16007987]
[1747641223224,0.7806,2404.4,2403.7,8.7]
[1747641223424,0.7806,2404.4,2404.0,4.15962331]
[1747641224457,3.65054654,2404.5,2404.1,4.15943635]
[1747641224662,3.65054654,2404.5,2403.8,8.684]
[1747641224963,3.65054654,2404.5,2404.2,4.15937194]
[1747641225162,3.65054654,2404.5,2404.2,12.86137194]
[1747641225921,12.33454654,2404.8,2404.4,4.15891919]
[1747641226121,0.8255,2404.8,2404.4,4.15896296]
[1747641226316,0.8255,2404.8,2404.3,4.15916684]
[1747641226523,3.65054654,2404.9,2404.6,4.15861294]
[1747641227123,7.80874516,2404.9,2404.3,12.84114488]
[1747641227362,7.80874516,2404.9,2404.4,5.17559032]
[1747641227543,7.80874516,2404.9,2404.5,4.15886652]
[1747641227944,7.80874516,2404.9,2404.4,5.1756505]
[1747641228137,7.80874516,2404.9,2404.5,4.15886738]
[1747641228826,7.80874516,2404.9,2404.4,5.17563643]
[1747641230365,3.65054654,2404.9,2404.4,1.01670116]
[1747641230528,3.65054654,2404.9,2404.3,4.15911738]
[1747641230529,4.15855933,2404.7,2404.3,4.15911738]
[1747641230929,7.8088526,2404.9,2404.4,4.15896379]
[1747641231143,4.1583525,2404.8,2404.4,4.15896828]
[1747641231928,7.80881187,2404.9,2404.4,4.15896828]
[1747641232129,7.80881187,2404.9,2404.5,4.15885961]
[1747641232335,7.8087911,2404.9,2404.5,4.15885961]
[1747641232865,7.8087911,2404.9,2404.4,4.15894227]
[1747641233067,4.15835567,2404.8,2404.3,4.15912272]
[1747641233366,4.15853487,2404.7,2404.2,18.2047]
[1747641233564,10.30921411,2405.3,2403.9,4.44880184]
[1747641233565,3.65054654,2404.6,2404.3,8.701]
[1747641233870,1.9023847,2404.5,2404.3,12.86012349]
[1747641234840,1.9023847,2404.5,2404.4,4.15904175]
[1747641236370,2.6849847,2404.7,2404.4,8.31792503]
[1747641236549,2.6849847,2404.7,2404.3,12.8600616]
[1747641237576,2.6849847,2404.7,2404.4,4.15902439]
[1747641239872,1.9023847,2404.5,2404.4,4.15902439]
[1747641241991,1.9023847,2404.7,2404.5,4.1588058]
[1747641242499,1.9023847,2404.7,2404.4,4.15894279]
[1747641242981,1.9023847,2404.7,2404.3,12.86013737]
[1747641242982,1.9023847,2404.5,2404.3,8.672]
[1747641243895,4.1593606,2404.3,2403.9,0.28904466]
[1747641244109,0.7795,2404.4,2404.1,4.15943247]
[1747641244400,2.6818847,2404.4,2404.2,4.15935942]
[1747641244569,1.9023847,2404.4,2404.2,4.15935942]
[1747641244780,1.9023847,2404.4,2404.3,4.15921474]
[1747641245097,2.7056847,2404.6,2404.3,4.15921474]
[1747641245299,2.7056847,2404.6,2404.3,4.15910112]
[1747641245474,2.7056847,2404.6,2404.2,4.15933991]
[1747641245669,6.86441042,2404.6,2404.1,12.83145846]
[1747641245992,2.7056847,2404.6,2404.2,4.15936033]
[1747641246993,1.9023847,2404.4,2404.1,12.8315539]
[1747641247291,1.9023847,2404.4,2404.2,4.15938467]
[1747641247503,1.9023847,2404.4,2404.1,12.83149202]
[1747641247663,1.9023847,2404.4,2404.1,12.83154595]
[1747641250396,1.9023847,2404.4,2404.1,4.15954595]
[1747641250597,1.9023847,2404.2,2404.0,4.15966525]
[1747641251891,1.9023847,2404.2,2404.0,4.15961157]
[1747641253231,1.9023847,2404.5,2404.1,4.15947922]
[1747641253366,6.06126365,2404.5,2404.1,4.15947922]
[1747641255003,1.9023847,2404.5,2404.2,4.15935114]
[1747641255393,11.32711795,2404.8,2404.2,8.654]
[1747641255568,1.9023847,2404.6,2404.3,4.28905815]
[1747641256270,1.9023847,2404.6,2404.2,13.76012126]
[1747641256461,1.9023847,2404.6,2404.2,12.81328126]
[1747641256700,1.9023847,2404.6,2404.2,16.97251685]
[1747641257010,1.9023847,2404.4,2404.3,8.80291191]
[1747641257411,2.6772847,2404.4,2404.3,8.80291191]
[1747641257603,2.6772847,2404.4,2404.3,8.673]
[1747641259522,1.9023847,2404.6,2404.3,8.673]
[1747641259704,1.9023847,2404.6,2404.3,12.8320672]
[1747641260083,1.9023847,2404.6,2404.4,4.15894821]
[1747641260743,0.7632,2404.8,2404.3,12.83215878]
[1747641260901,0.7632,2404.8,2404.4,5.52086347]
[1747641260902,2.6655847,2404.8,2404.4,5.52086347]
[1747641261107,2.6655847,2404.8,2404.4,4.28886168]
[1747641261308,2.6655847,2404.8,2404.4,4.15895759]
[1747641261825,6.82395275,2404.8,2404.4,4.15895759]
[1747641262620,2.6655847,2404.8,2404.4,4.15889322]
[1747641263015,2.6655847,2404.8,2404.4,4.15904175]
[1747641263521,6.82395371,2404.8,2404.4,4.15904175]
[1747641265129,2.6655847,2404.8,2404.4,4.15904175]
[1747641265293,2.6655847,2404.8,2404.5,0.23229797]
[1747641266390,2.6655847,2404.8,2404.4,4.15904175]
[1747641268827,6.82393474,2404.8,2404.4,4.15904175]
[1747641268997,7.26956017,2404.8,2404.4,4.15904175]
[1747641269195,1.9023847,2404.6,2404.3,8.673]
[1747641269495,1.9023847,2404.4,2404.3,8.673]
[1747641270595,2.6632847,2404.4,2404.3,8.673]
[1747641271134,2.6632847,2404.4,2404.3,12.96212805]
[1747641271330,2.6632847,2404.4,2404.3,8.80291331]
[1747641272435,0.7609,2404.4,2404.3,8.80291331]
[1747641273023,0.7609,2404.4,2404.3,9.0358125]
[1747641275148,6.82232645,2404.4,2404.3,0.23289919]
[1747641275306,7.5045591,2404.4,2404.3,0.23289919]
[1747641275706,7.5045591,2404.4,2404.0,4.159657]
[1747641275905,6.82232645,2404.4,2404.0,4.159657]
[1747641276202,2.6632847,2404.4,2404.1,0.12992491]
[1747641276439,6.06186739,2404.2,2404.1,0.12992491]
[1747641276630,6.87486739,2404.2,2404.1,0.12992491]
[1747641276829,4.15978068,2404.0,2403.8,0.28904466]
[1747641277139,6.06229151,2403.9,2403.8,0.52248882]
[1747641277347,6.88129151,2403.9,2403.8,0.52248882]
[1747641278043,7.56942066,2403.9,2403.8,0.52248882]
[1747641278405,15.56942066,2403.9,2403.8,0.52248882]
[1747641278907,0.7756,2403.5,2403.2,8.644]
[1747641279107,1.9023847,2403.4,2403.2,8.644]
[1747641279331,0.7756,2403.5,2403.2,12.80505043]
[1747641279547,1.9023847,2403.6,2403.4,4.16073395]
[1747641279859,1.9023847,2403.6,2403.2,12.80507017]
[1747641280209,0.7602,2404.0,2403.6,4.16031917]
[1747641280539,4.91994898,2404.0,2403.6,4.16031917]
[1747641280747,4.91994898,2404.0,2403.5,4.16051932]
[1747641281320,6.06273074,2403.7,2403.2,12.80596105]
[1747641281531,6.06273074,2403.7,2403.3,4.16093256]
[1747641281708,1.9023847,2403.7,2403.3,4.16093256]
[1747641281908,6.06243241,2403.9,2403.3,4.16093256]
[1747641282133,4.16008994,2403.8,2403.4,4.16077223]
[1747641282550,4.16008994,2403.8,2403.3,4.16085748]
[1747641283147,4.16008994,2403.8,2403.4,4.16074788]
[1747641284940,1.9023847,2403.9,2403.6,4.16041341]
[1747641285258,0.7602,2404.0,2403.7,4.16023295]
[1747641285418,4.91995325,2404.0,2403.6,4.1603207]
[1747641286054,0.6,2403.8,2403.6,4.1603207]
[1747641286228,0.6,2403.8,2403.7,4.16025294]
[1747641286550,0.7602,2404.0,2403.6,4.16029543]
[1747641286927,1.9023847,2403.9,2403.5,4.16054753]
[1747641287140,6.06235725,2403.9,2403.2,17.271]
[1747641287338,4.16008215,2403.8,2403.4,4.16070074]
[1747641287542,1.9023847,2403.7,2403.4,4.16070074]
[1747641288480,2.7273847,2403.5,2403.1,0.05]
[1747641288960,2.7273847,2403.5,2403.2,4.16109401]
[1747641289131,2.7273847,2403.5,2403.3,4.16091207]
[1747641290068,2.7273847,2403.5,2403.2,4.16102247]
[1747641290865,6.82605146,2403.7,2403.3,4.1609451]
[1747641291168,2.6657847,2403.7,2403.4,4.16072793]
[1747641291750,1.9023847,2403.7,2403.4,4.16072793]
[1747641293548,6.8325935,2403.9,2403.5,4.16058636]
[1747641293734,4.16010144,2403.8,2403.4,4.16070134]
[1747641294664,1.9023847,2403.7,2403.4,4.16070134]
[1747641294870,6.0627629,2403.7,2403.1,13.65551457]
[1747641295071,6.0627629,2403.7,2403.2,4.16104634]
[1747641295237,6.0627629,2403.7,2403.3,4.1608519]
[1747641296374,1.9023847,2403.7,2403.3,4.1608519]
[1747641296547,1.9023847,2403.7,2403.4,4.16069753]
[1747641297259,6.0626386,2403.7,2403.3,4.16087952]
[1747641299281,1.9023847,2403.7,2403.3,4.16087952]
[1747641300172,1.9023847,2403.7,2403.4,4.16069181]
[1747641300342,2.6725847,2403.9,2403.6,4.1603536]
[1747641300542,2.6725847,2403.9,2403.5,4.16052502]
[1747641300835,6.83256432,2403.9,2403.4,16.93930286]
[1747641301040,0.6,2403.7,2403.4,12.77864049]
[1747641301343,6.6626429,2403.7,2403.4,8.618]
[1747641302472,2.6749847,2403.5,2403.4,8.618]
[1747641302677,6.83558382,2403.5,2403.4,8.618]
[1747641302977,2.6749847,2403.5,2403.4,8.618]
[1747641304381,2.6752847,2403.7,2403.4,12.77877038]
[1747641304580,2.6752847,2403.7,2403.4,8.618]
[1747641305980,6.83557473,2403.7,2403.4,8.618]
[1747641306145,5.2600253,2403.6,2403.4,8.618]
[1747641306653,6.06298382,2403.5,2403.4,8.618]
[1747641306998,6.06307488,2403.5,2403.1,0.05]
[1747641307290,0.8309,2403.2,2403.1,0.05]
[1747641307445,5.26534697,2403.2,2403.1,0.05]
[1747641309587,4.16215766,2402.6,2402.5,0.28904466]
[1747641309785,6.84284236,2402.6,2402.5,0.28904466]
[1747641310289,24.81757561,2402.6,2402.5,0.28904466]
[1747641310453,28.5774357,2402.6,2402.5,0.08921453]
[1747641310649,45.8014357,2402.6,2402.5,0.08921453]
[1747641310849,45.2514357,2402.6,2402.5,0.08921453]
[1747641311471,45.8014357,2402.6,2402.5,0.08921453]
[1747641311649,47.55946502,2402.6,2402.5,0.08921453]
[1747641312779,47.55946502,2402.6,2402.1,0.05]
[1747641312984,4.16285072,2402.2,2402.1,0.05]
[1747641313783,7.82318142,2402.3,2402.1,0.05]
[1747641314087,4.16285072,2402.2,2402.1,0.05]
[1747641314587,3.66041402,2402.3,2402.1,0.05]
[1747641315593,4.8915927,2402.5,2402.1,0.05]
[1747641315884,0.7934,2402.5,2402.2,4.16274177]
[1747641318384,13.08514727,2402.6,2402.3,4.1626663]
[1747641318584,13.08514727,2402.6,2402.1,0.05]
[1747641319096,4.16245673,2402.5,2402.1,0.05]
[1747641319292,4.16258375,2402.4,2402.1,0.05]
[1747641319499,4.99521951,2402.3,2402.1,0.05]
[1747641319796,0.83250405,2402.3,2402.1,0.05]
[1747641320899,0.7745,2402.2,2402.1,0.05]
[1747641321266,3.66041402,2402.3,2402.1,0.05]
[1747641321590,0.8186,2402.4,2402.1,0.05]
[1747641321898,12.76035716,2402.5,2402.1,4.2129554]
[1747641322059,12.76035716,2402.5,2402.1,0.05]
[1747641322263,7.24592292,2402.4,2402.1,0.05]
[1747641325196,3.08340642,2402.4,2402.1,0.05]
[1747641325401,4.1627818,2402.3,2402.1,0.05]
[1747641325803,7.24600192,2402.4,2402.1,0.05]
[1747641326001,4.16272009,2402.3,2402.1,0.05]
[1747641326164,0.72461265,2402.2,2402.1,0.05]
[1747641326697,7.24601526,2402.4,2402.1,0.05]
[1747641327900,4.16267755,2402.3,2402.1,0.05]
[1747641328077,7.24599869,2402.4,2402.1,0.05]
[1747641329213,4.16267777,2402.3,2402.1,0.05]
[1747641330902,12.91975072,2402.2,2402.1,0.05]
[1747641331086,23.8953799,2402.2,2402.1,0.05]
[1747641331480,33.93441315,2402.2,2402.1,0.05]
[1747641333267,25.34141315,2402.2,2402.1,0.05]
[1747641333816,44.43042358,2402.2,2402.1,0.05]
[1747641334569,27.24842358,2402.2,2402.1,0.05]
[1747641334770,43.87942358,2402.2,2402.1,0.05]
[1747641335514,35.87942358,2402.2,2402.1,0.05]
[1747641335856,16.79141315,2402.2,2402.1,0.05]
[1747641335982,25.37741315,2402.2,2402.1,0.05]
[1747641336912,16.79141315,2402.2,2402.1,0.05]
[1747641338604,15.97021315,2402.2,2402.1,0.05]
[1747641341024,9.42473325,2402.2,2402.1,0.05]
[1747641341336,4.16223912,2402.6,2402.2,0.8271]
[1747641341337,4.16218606,2402.6,2402.2,0.8271]
[1747641341624,18.00673325,2402.7,2402.2,0.8271]
[1747641342124,4.16226767,2402.6,2402.2,0.8271]
[1747641342295,4.16236492,2402.5,2402.2,0.8271]
[1747641342826,4.16225475,2402.6,2402.2,4.98993832]
[1747641343187,4.16233118,2402.5,2402.2,0.8271]
[1747641343622,0.6,2402.4,2402.2,0.8271]
[1747641344043,0.6,2402.4,2402.2,4.98988586]
[1747641345926,4.76255966,2402.4,2402.2,0.8271]
[1747641346132,0.6,2402.4,2402.2,0.8271]
[1747641346430,0.47624153,2402.3,2402.1,0.05]
[1747641346731,4.16274255,2402.3,2402.1,0.05]
[1747641347405,0.6,2402.4,2402.1,4.21300154]
[1747641347735,0.6,2402.4,2402.1,0.05]
[1747641348418,4.7625084,2402.4,2402.1,0.05]
[1747641348733,0.6,2402.4,2402.1,0.05]
[1747641349142,4.762608,2402.4,2402.1,0.05]
[1747641349633,4.16270501,2402.3,2402.1,0.05]
[1747641350009,0.6,2402.4,2402.1,0.05]
[1747641350431,4.76251853,2402.4,2402.1,0.05]
[1747641351955,0.6,2402.4,2402.1,4.21297783]
[1747641352261,0.6,2402.4,2402.2,4.16276785]
[1747641352424,0.6,2402.4,2402.1,5.13169584]
[1747641352953,0.6,2402.4,2402.1,0.05]
[1747641353945,4.16269226,2402.3,2402.1,0.05]
[1747641354180,4.7626386,2402.4,2402.1,0.05]
[1747641354792,0.6,2402.4,2402.1,0.05]
[1747641355383,4.76254049,2402.4,2402.1,0.05]
[1747641355771,6.6685138,2402.4,2402.1,0.05]
[1747641357287,2.50597331,2402.4,2402.1,4.2130233]
[1747641358187,2.50597331,2402.4,2402.1,0.05]
[1747641358372,4.16276539,2402.3,2402.1,0.05]
[1747641358783,6.66856488,2402.4,2402.1,0.05]
[1747641358984,7.33538384,2402.4,2402.1,0.05]
[1747641359171,4.16270328,2402.3,2402.1,0.05]
[1747641360171,7.33539531,2402.4,2402.1,0.05]
[1747641360374,4.16283423,2402.3,2402.1,0.05]
[1747641361184,3.1728298,2402.4,2402.1,0.05]
[1747641361495,7.33542753,2402.4,2402.1,0.05]
[1747641361697,5.31254642,2402.3,2402.1,0.05]
[1747641361888,6.06882403,2402.2,2402.1,0.05]
[1747641363301,6.06618769,2402.2,2402.1,0.05]
[1747641363503,14.62518769,2402.2,2402.1,0.05]
[1747641363994,22.62518769,2402.2,2402.1,0.05]
[1747641364197,26.48465974,2402.2,2402.1,0.05]
[1747641366412,22.32144536,2402.2,2402.1,0.05]
[1747641366714,26.48429608,2402.2,2402.1,0.05]
[1747641366913,1.90597331,2402.2,2402.1,0.05]
[1747641367114,13.32760442,2402.4,2402.1,0.05]